Cogmind - Beta 16 @@@ ROGUE MODE // 2025.10.25 @ 21:32:26 Player: Jack Result: Destroyed by G-34 Mercenary with Small Laser Performance ------------- Evolutions (1) 500 Regions Visited (4) 800 Robots Destroyed (5) 25 Value Destroyed (46) 46 Prototype IDs (1) 20 Alien Tech Used (0) 0 Bonus (0) 0 TOTAL SCORE: 1391 Bonus ------- None Cogmind --------- Core Integrity 0/400 Matter 300/300 Energy 99/100 System Corruption 9% Temperature Cool (6) Movement Core (50) Location -9/Mines Parts ------- > --- POWER (1) -------- (None) > --- PROPULSION (3) --- (None) > --- UTILITY (3) ------ (None) > --- WEAPON (2) ------- (None) > --- INVENTORY (5) ---- (None) Peak State ------------ > --- POWER ------------ (None) > --- PROPULSION ------- Flight Unit Flight Unit > --- UTILITY ---------- Bomb Drone Bay > --- WEAPON ----------- Assault Rifle Light Assault Rifle > --- INVENTORY -------- (None) [Rating: 18] Favorites ----------- Power None Propulsion Flight Unit Flight Unit Flight Unit Utility Bomb Drone Bay Device Bomb Drone Bay Weapon Light Assault Rifle Ballistic Gun Light Assault Rifle Build | -11 -10 -10 -9 -9 ------- Run | Yrd Mat Min Mat Min Slots Evolved 2 | . . . 2 . Power . | . . . . . Propulsion 1 | . . . 1 . Utility 1 | . . . 1 . Weapon . | . . . . . Parts Attached 7 | 2 . 3 . 2 Power . | . . . . . Engine . | . . . . . Core . | . . . . . Reactor . | . . . . . Propulsion 4 | . . 2 . 2 Treads . | . . . . . Leg . | . . . . . Wheel . | . . . . . Hover . | . . . . . Flight 4 | . . 2 . 2 Utility 1 | . . 1 . . Device 1 | . . 1 . . Storage . | . . . . . Processor . | . . . . . Hackware . | . . . . . Protection . | . . . . . Artifact . | . . . . . Weapon 2 | 2 . . . . Energy Gun . | . . . . . Energy Cannon . | . . . . . Ballistic Gun 2 | 2 . . . . Ballistic Cannon . | . . . . . Launcher . | . . . . . Special Weapon . | . . . . . Impact Weapon . | . . . . . Slashing Weapon . | . . . . . Piercing Weapon . | . . . . . Special Melee Weapon . | . . . . . Unidentified Prototypes 1 | . . 1 . . Parts Lost 5 | . . . . 5 Power . | . . . . . Propulsion 4 | . . . . 4 Utility . | . . . . . Weapon 1 | . . . . 1 Highest Loss Streak 5 | . . . . 5 To Critical Strikes . | . . . . . Average Backups . | . . . . . Power . | . . . . . Propulsion . | . . . . . Utility . | . . . . . Weapon . | . . . . . Tool/Special . | . . . . . Unused Backups . | . . . . . Power . | . . . . . Propulsion . | . . . . . Utility . | . . . . . Weapon . | . . . . . Tool/Special . | . . . . . Average Slot Usage (%) 36 | . 28 37 51 26 Flight 9 | . . 2 22 14 Device 4 | . . 6 7 . Ballistic Gun 22 | . 28 28 22 12 Peak Build Rating 18 | 2 2 16 18 5 Average Rating 7 | 1 2 9 13 2 On Entrance 2 | . 2 2 5 4 Avg Prop Armor Cover (%) . | . . . . . Naked Turns 58 | . . . . 58 Heaviest Build 11 | 3 3 11 3 3 Greatest Support 12 | 3 3 8 8 12 Greatest Overweight (x) 3 | . . 3 . . Average Overweight (x) . | . . . . . Largest Inventory Capacity 5 | 5 5 5 5 5 Average Capacity 5 | 5 5 5 5 5 Most Carried 2 | . . 2 . . Average Carried . | . . . . . Final Capacity 5 | 5 5 5 5 5 Final Carried 2 | . . 2 . . Class Distribution -------------------- 100% | Mutant Dominant Class ---------------- Mutant | -10/Materials Mutant | -10/Mines Mutant | -9/Materials Mutant | -9/Mines Resources | -11 -10 -10 -9 -9 ----------- Run | Yrd Mat Min Mat Min Matter Collected 335 | 169 . 105 . 61 Remotely . | . . . . . Salvage Created 151 | . . 92 . 59 Parts 9 | . . 1 . 8 Haulers Intercepted . | . . . . . Recyclers Shooed . | . . . . . Parts Field Recycled . | . . . . . Retrieved Matter . | . . . . . Parts Self-Destructed . | . . . . . Prevented . | . . . . . Parts Restored . | . . . . . Kills | -11 -10 -10 -9 -9 ------- Run | Yrd Mat Min Mat Min Combat Hostiles Destroyed 4 | . . . . 4 Guns 4 | . . . . 4 Classes Destroyed 2 | . . 1 . 1 Recycler 1 | . . 1 . . Swarmer 4 | . . . . 4 Best Kill Streak 4 | . . 1 . 4 Combat Bots Only 4 | . . . . 4 Max Kills in Single Turn 1 | . . 1 . 1 Gunslinging . | . . . . . Exploded . | . . . . . Melee . | . . . . . Uniques/NPCs Destroyed . | . . . . . Combat | -11 -10 -10 -9 -9 -------- Run | Yrd Mat Min Mat Min Hostile Shots Fired 51 | . 2 . . 49 Missed 14 | . 1 . . 13 Hits 37 | . 1 . . 36 Melee 7 | . . . . 7 Projectile 30 | . 1 . . 29 AOE 5 | . . . . 5 Critical Strikes 1 | . . . . 1 Damage Taken 648 | . 11 . . 637 Core 404 | . . . . 404 Absorbed by Shields . | . . . . . Core Remaining (%) 100 | 100 . 100 . . Volleys Fired 19 | . 3 3 . 13 Largest 2 | . 2 2 . 2 Hottest 40 | . 40 40 . 40 Shots Fired 38 | . 6 6 . 26 Gun 38 | . 6 6 . 26 Cannon . | . . . . . Launcher . | . . . . . Special . | . . . . . Kinetic 38 | . 6 6 . 26 Thermal . | . . . . . Explosive . | . . . . . Electromagnetic . | . . . . . Robot Hit Streak 8 | . 1 5 . 8 Robot Miss Streak 2 | . 1 1 . 2 Penetration Max . | . . . . . Secondary Targets 1 | . . . . 1 Max Gunslinging Chain 1 | . . . . 1 Shots Hit Robots 25 | . 3 5 . 17 Core Hits 11 | . 1 3 . 7 Critical Kills . | . . . . . Critical Parts Destroyed . | . . . . . Critical Strikes . | . . . . . Melee Attacks . | . . . . . Impact . | . . . . . Slashing . | . . . . . Piercing . | . . . . . Sneak Attacks . | . . . . . Combat Hostiles . | . . . . . Follow-up Attacks . | . . . . . Damage Inflicted 272 | . 26 47 . 199 Guns 267 | . 26 47 . 194 Cannons . | . . . . . Explosions . | . . . . . Melee . | . . . . . Ramming 5 | . . . . 5 Kinetic 267 | . 26 47 . 194 Thermal . | . . . . . Explosive . | . . . . . Electromagnetic . | . . . . . Impact . | . . . . . Slashing . | . . . . . Piercing . | . . . . . Highest Corruption 9 | . . . . 9 Average Corruption 8 | . . . . 8 Corruption Purged . | . . . . . Corruption Blocked . | . . . . . Effects 2 | . . . . 2 Matter Fused 1 | . . . . 1 Heat Flow Errors 1 | . . . . 1 Overload Shots . | . . . . . Overflow Damage . | . . . . . Projectiles . | . . . . . Explosions . | . . . . . Melee . | . . . . . Knockbacks . | . . . . . Impact . | . . . . . Kinetic . | . . . . . Secondary . | . . . . . Self-Inflicted Damage 2 | . . . . 2 Shots . | . . . . . Rammed 3 | . . . . 3 Targets Rammed 3 | . . . . 3 Kicked . | . . . . . Crushed . | . . . . . Highest Temperature 137 | . . . . 137 Average Temperature 68 | . . . . 68 Received Heat Transfer 81 | . 6 . . 75 Siege Activations . | . . . . . Martial Activations . | . . . . . Shielding Activations . | . . . . . Robots Disrupted . | . . . . . Combat Hostiles . | . . . . . Robots Corrupted . | . . . . . Combat Hostiles . | . . . . . Parts Fried . | . . . . . Impact Corruptions . | . . . . . Robots Melted . | . . . . . Combat Hostiles . | . . . . . Parts Melted . | . . . . . Heat Transferred . | . . . . . Parts Sabotaged . | . . . . . Parts Stolen . | . . . . . Parts Stripped . | . . . . . Power Chain Reactions . | . . . . . Alert | -11 -10 -10 -9 -9 ------- Run | Yrd Mat Min Mat Min Maximum Alert Level . | . . . . . Low Security (%) 100 | 100 100 100 100 100 Level 1 . | . . . . . Level 2 . | . . . . . Level 3 . | . . . . . Level 4 . | . . . . . Level 5 . | . . . . . High Security . | . . . . . Max Security . | . . . . . Peak Influence 80 | . . 5 . 80 Initial . | . . . . . Average 5 | . . . . 22 Influence Increases 95 | . . 5 . 90 Destroy 0b10 Robot/C 80 | . . . . 80 Destroy 0b10 Robot/NC 5 | . . 5 . . Destroy Leader 10 | . . . . 10 Influence Decreases 95 | . . 5 . 90 Time Decay 45 | . . 5 . 40 Lost Part 50 | . . . . 50 Squads Dispatched 2 | . 1 . 1 . Investigation 1 | . . . 1 . Extermination . | . . . . . Reinforcement 1 | . 1 . . . Assault . | . . . . . Garrison . | . . . . . Intercept . | . . . . . Searches Triggered . | . . . . . Construction Impeded . | . . . . . Haulers Reinforced . | . . . . . Active Scanning Responses . | . . . . . Cargo Convoy Interrupts . | . . . . . Stealth | -11 -10 -10 -9 -9 --------- Run | Yrd Mat Min Mat Min Distress Signals . | . . . . . Communications Jammed . | . . . . . Distress Signals . | . . . . . Times Spotted 50 | . 6 . 1 43 Peak Tracking Total 22 | . 4 . 1 22 Tactical Retreats 2 | . . . . 2 Traps | -11 -10 -10 -9 -9 ------- Run | Yrd Mat Min Mat Min Traps Triggered . | . . . . . Indirectly . | . . . . . Trap Hack Attempts . | . . . . . Triggered . | . . . . . Disarmed . | . . . . . Reprogrammed . | . . . . . Reused . | . . . . . Traps Extracted . | . . . . . Installed . | . . . . . Triggered . | . . . . . Machines | -11 -10 -10 -9 -9 ---------- Run | Yrd Mat Min Mat Min Machines Disabled 1 | . 1 . . . Max in Single Turn 1 | . 1 . . . Machines Repaired . | . . . . . Machines Dismantled . | . . . . . Machines Sabotaged . | . . . . . Overloaded Fab Kills . | . . . . . Hacking | -11 -10 -10 -9 -9 --------- Run | Yrd Mat Min Mat Min Machines Accessed 1 | . . 1 . . Terminals . | . . . . . Fabricators . | . . . . . Repair Stations . | . . . . . Recycling Units . | . . . . . Scanalyzers . | . . . . . Garrison Access . | . . . . . Total Hacks 1 | . . 1 . . Successful 1 | . . 1 . . Failed . | . . . . . Catastrophic . | . . . . . Database Lockouts . | . . . . . Manual . | . . . . . Terminals . | . . . . . Fabricators . | . . . . . Repair Stations . | . . . . . Recycling Units . | . . . . . Scanalyzers . | . . . . . Garrison Access . | . . . . . Terminal Hacks 1 | . . 1 . . Open Door 1 | . . 1 . . Fabricator Hacks . | . . . . . Repair Station Hacks . | . . . . . Recycling Unit Hacks . | . . . . . Scanalyzer . | . . . . . Garrison Access Hacks . | . . . . . Unauthorized Hacks . | . . . . . Terminals . | . . . . . Fabricators . | . . . . . Repair Stations . | . . . . . Recycling Units . | . . . . . Scanalyzers . | . . . . . Garrison Access . | . . . . . Data Cores Recovered . | . . . . . Used . | . . . . . Hacking Detections . | . . . . . Full Trace Events . | . . . . . Feedback Events . | . . . . . Feedback Blocked . | . . . . . Robot Schematics Acquired . | . . . . . Robots Built . | . . . . . Authchips . | . . . . . Time . | . . . . . Total Robot Build Rating . | . . . . . Part Schematics Acquired . | . . . . . Parts Built . | . . . . . Authchips . | . . . . . Time . | . . . . . Total Part Build Rating . | . . . . . Part Studies Acquired . | . . . . . Parts Repaired . | . . . . . Time . | . . . . . Parts Recycled . | . . . . . Recycled Matter . | . . . . . Retrieved Matter . | . . . . . Retrieved Components . | . . . . . Parts Scanalyzed . | . . . . . Part Schematics Acquired . | . . . . . Parts Damaged . | . . . . . Bothacking | -11 -10 -10 -9 -9 ------------ Run | Yrd Mat Min Mat Min Used RIF Installer . | . . . . . Robots Hacked . | . . . . . Non-combat . | . . . . . Combat . | . . . . . Robot Hacks Applied . | . . . . . Relay Couplers Released . | . . . . . Fabnet Peak Effective % . | . . . . . Robots Rewired . | . . . . . Allies Hacked . | . . . . . Hacks Repelled . | . . . . . Allies | -11 -10 -10 -9 -9 -------- Run | Yrd Mat Min Mat Min Total Allies 3 | . . . . 3 Largest Group 3 | . . . . 3 Highest-Rated Group 40 | . . . . 40 Highest-Rated Ally 16 | . . . . 16 Total Orders 3 | . . 2 1 . EXPLORE 2 | . . 1 1 . RETURN 1 | . . 1 . . Ally Attacks 21 | . . 3 13 5 Total Damage 42 | . . . . 42 Kills . | . . . . . Allies Corrupted . | . . . . . Allies Melted . | . . . . . Intel | -11 -10 -10 -9 -9 ------- Run | Yrd Mat Min Mat Min Active Infowar (turns) . | . . . . . Robot Analysis Total . | . . . . . Derelict Logs Recovered 2 | . . 1 . 1 Drone Launches 29 | . . 16 13 . Drone Recoveries 13 | . . 13 . . Exploration | -11 -10 -10 -9 -9 ------------- Run | Yrd Mat Min Mat Min Turns Passed 490 | 21 40 214 89 126 Spaces Moved 572 | 35 63 216 73 185 Core 377 | 35 63 169 . 110 Treads . | . . . . . Legs . | . . . . . Wheels . | . . . . . Hover . | . . . . . Flight 195 | . . 47 73 75 Fastest Speed 34 | 50 50 37 37 34 Average Speed 48 | 50 50 54 37 44 Slowest Speed 200 | 50 50 200 37 50 Overloaded Moves . | . . . . . Propulsion Burnouts . | . . . . . Robots Hopped 8 | . . 1 . 7 Potential Cave-ins 1 | . . . . 1 Cave-ins Triggered . | . . . . . Exploration Rate (%) 44 | 3 20 97 67 33 Regions Visited 4 Branch Regions 2 Pre-discovered Areas 1 | . . . . 1 Known Exits Taken . | . . . . . Unknown Exits Taken 4 | 1 1 1 1 . Scrap Searched 1 | . . . . 1 Spaces Dug . | . . . . . Terrain Destroyed . | . . . . . Melee . | . . . . . Projectile . | . . . . . AOE . | . . . . . Terrain Rammed . | . . . . . Walls Destroyed . | . . . . . Machines Disabled . | . . . . . Actions | -11 -10 -10 -9 -9 --------- Run | Yrd Mat Min Mat Min Total 735 | 36 65 303 134 197 Wait 143 | . . 82 60 1 Move 552 | 34 62 213 72 171 Hop 8 | . . 1 . 7 Pick Up . | . . . . . Fast Attach 7 | 2 . 3 . 2 Attach 1 | . . . 1 . Detach 1 | . . 1 . . Swap . | . . . . . Drop 1 | . . . 1 . Fire 19 | . 3 3 . 13 Melee . | . . . . . Ram 3 | . . . . 3 Kick . | . . . . . Crush . | . . . . . Escape Stasis . | . . . . . Rewire . | . . . . . Trap . | . . . . . Miscellaneous . | . . . . . Route ------- -11/Scrapyard -10/Materials -10/Mines (discovered 3 exits: [*Mat x2] / [*Sub]) -9/Materials (discovered 2 exits: [*Mat] / [*Min]) -9/Mines (discovered 1 exit: [*Zio]) History --------- Turn | Location | Event 8 | -11/Scrapyard | Discovered new exit (range 16) 22 | -11/Scrapyard | Entered Materials 42 | -10/Materials | Discovered new exit (range 6) 62 | -10/Materials | Entered Mines 67 | -10/Mines | Found the Drone Emporium 77 | -10/Mines | Found Prototype Device 77 | -10/Mines | Identified Bomb Drone Bay 114 | -10/Mines | Discovered new exit (range 56) 139 | -10/Mines | Discovered new exit (range 23) 144 | -10/Mines | Discovered new exit (range 39) 239 | -10/Mines | Learned Materials non-interactive machine intel 276 | -10/Mines | Entered Materials 276 | -9/Materials | Evolved 2 slots: Propulsion x1, Utility x1 277 | -9/Materials | Loaded intel: 30 non-interactive machine locations 303 | -9/Materials | Discovered new exit (range 52) 306 | -9/Materials | Discovered new exit (range 72) 316 | -9/Materials | Build established: Mutant 365 | -9/Materials | Entered Mines 366 | -9/Mines | A Derelict revealed a hidden shortcut to a safe place 366 | -9/Mines | Assembled infested the area 371 | -9/Mines | Assisted by a Guerilla fighting off Assembled 383 | -9/Mines | Learned location of Recycling (-8) 448 | -9/Mines | Found DCF Scrap (14 items) 453 | -9/Mines | Core integrity fell below 50% 459 | -9/Mines | Assisted by bots powering up and referring to "LRC-V3" 464 | -9/Mines | Lost 5 parts (4n1w) 484 | -9/Mines | Core integrity fell below 20% 491 | -9/Mines | Destroyed by G-34 Mercenary with Small Laser Last Messages --------------- Found Propulsion Shielding. Found Seismic Detector. Found Med. Armor Plating. Found Assault Rifle. Found Particle Gun. Found Lgt. Cannon. Found Imp. Light Cannon. Found 137 Matter. A note is attached: "With love, from the DCF." Acquired 7 matter. C-45 Heavy ARC bursts open, deploying its payload. D-53 Grenadier unfolds itself. as-46007 destroyed. T-07 Excavator is excavating. Trooper 2a: "Hello LRC-V3. What is your command?" Mercenary 2a: "Hello LRC-V3. What is your command?" Trooper 2b: "Hello LRC-V3. What is your command?" T-07 Excavator is excavating. System corrupted: Heat flow error (+165). D-53 Grenadier destroyed. Map ----- +----------------------------------------------------+ | ???????# #??????????# | | ????????## # #####?????????## | | ?????????#### ## #?????????????# | | ?????????# ### #?????????????# | | ?????????# #### ##????????????# | | ?????????# ######?# ##???????????## | | ?????????###?????## #????????????? | | ?????????## ###### #????????????? | | ?????????# ### ##????????????? | | ?????????# ## #?????????????? | | ????###### ##?????????????? | | ???## ## ## ##??????????????? | | ???# # ### #???????????????? | | ???# # #?# #???????????????? | | ???# ## #?# #???????????????? | | ???# ## #?# ???????????????? | | ???## ### ### #?###???????????????? | | ????###?#####?# #???????????????????? | | ??????????????# #???????????????????? | | ???????????#### #???????????????????? | | ???????????# #???????????????????? | | ???????????# ####???????????????????? | | ???????????# ##?????????????????????? | | ???????????# ##????????????????????? | | ???????????# #????????????????????? | | ???????????#@ #????????????????????? | | ???????????# #????????????????????? | | ??????????? #???????????????????? | | ??????????? #??????????????????? | | ?????????? gg#??????????????????? | | ?????????? t #?????????????????? | | ????????? ## ????????????????? | | ????????? #??# ???????????????? | | ???????? #???? ##??????????????? | | ????????#?????# #???????????????? | | ???????????????## ##???????????????? | | ?????????????????###????????????????? | | ????????????????????????????????????? | | ????????????????????????????????????? | | ????????????????????????????????????? | | ????????????????????????????????????? | | ????????????????????????????????????? | | ????????????????????????????????????? | | ????????????????????????????????????? | | ????????????????????????????????????? | | ????????????????????????????????????? | | ????????????????????????????????????? | | ????????????????????????????????????? | | ????????????????????????????????????? | | ????????????????????????????????????? | +----------------------------------------------------+ Best States ------------- Heat Dissipation 28 Energy Generation 5 Energy Capacity 100 Matter Stores 300 Matter Capacity 300 Sight Range 16 Terrain Scan Density 10 Evasion (%) 63 Item Schematics ----------------- None Robot Schematics ------------------ None Fabricated ------------ Nothing Repaired ---------- Nothing Studied --------- None Alien Tech Used ----------------- None Achievements -------------- None Challenges ------------ None Game ------ Seed ZeronetSlugInterface Manual? 0 Play Time 00:06:45 Cumulative 345.0 hours Start 2025.10.25 @ 21:27:24 End 2025.10.25 @ 21:32:26 Sessions 1 Manual Loads 0 Difficulty Rogue Special Mode None Game No. 323 Rogue 134 Adventurer 177 Explorer 12 Win Type - Total 71 Types 21/2/17/2/12/0/5/6/0/6 Lore% 59 Gallery% 57 Achievement% 49 Wizard Run 0 Options --------- Layout 0 ASCII 0 Keyboard 0 Movement Numpad Keybinds 0 Fullscreen 2 Font 12/Smallcaps Map View 83x54 Zoom Use 0% Tactical HUD 0 Map Filters NONE Filters NONE Steam 1 RUN: ba85b77c-bbaf-4712-99ba-d82c3390d28d